bitfinex-derivatives/quotes_ETHF0:USTF0_20250909
["timestamp","ask_amount","ask_price","bid_price","bid_amount"]
[1757422097216,0.7146,4352.9,4352.8,0.411]
[1757422097925,0.7146,4352.9,4352.8,0.6721]
[1757422097926,0.2983,4352.9,4352.8,0.6721]
[1757422098225,0.5433,4353.5,4353.4,0.2052]
[1757422098422,0.5433,4353.5,4353.4,0.234]
[1757422098723,0.8416,4353.5,4353.4,0.234]
[1757422099122,0.8416,4353.5,4353.4,0.4392]
[1757422100519,0.8416,4353.5,4353.4,0.234]
[1757422101819,0.8416,4353.5,4353.4,0.4392]
[1757422102125,0.8416,4353.5,4353.4,0.234]
[1757422106526,0.8318,4353.0,4352.9,3.2078]
[1757422106730,0.8318,4353.0,4352.9,0.234]
[1757422106917,0.8318,4353.0,4352.9,0.645]
[1757422107525,0.8318,4353.0,4352.4,3.2078]
[1757422107733,0.8318,4352.5,4352.4,3.413]
[1757422108029,0.8318,4352.5,4352.4,3.647]
[1757422108329,0.8318,4352.5,4352.4,3.8528]
[1757422110122,0.2983,4352.9,4352.6,0.2611]
[1757422110327,0.2983,4352.9,4352.7,0.2611]
[1757422110628,0.5087,4352.9,4352.8,0.9061]
[1757422110825,0.2983,4352.9,4352.8,1.31955]
[1757422111030,0.8416,4353.5,4353.4,0.2052]
[1757422111226,1.40064629,4353.5,4353.4,0.4392]
[1757422111526,1.40064629,4353.5,4353.4,0.234]
[1757422112731,1.40064629,4353.5,4353.4,0.4392]
[1757422115826,0.6357,4353.5,4353.4,0.9066]
[1757422116323,0.6357,4353.5,4353.4,1.31999]
[1757422119129,0.6357,4353.5,4353.4,0.9066]
[1757422119435,0.8416,4353.5,4353.4,1.05839]
[1757422119735,0.8416,4353.5,4353.4,0.645]
[1757422120729,0.8416,4353.5,4353.4,0.234]
[1757422121437,0.8416,4353.5,4353.4,0.4392]
[1757422123226,0.2983,4353.4,4353.0,3.2078]
[1757422123425,0.7146,4353.1,4353.0,0.2052]
[1757422123631,0.7146,4353.1,4353.0,0.4392]
[1757422123830,0.7146,4353.1,4353.0,0.645]
[1757422124740,0.7146,4353.1,4353.0,1.05843]
[1757422124935,0.7146,4353.1,4353.0,0.645]
[1757422125332,0.7146,4353.1,4353.0,0.9066]
[1757422125538,0.2983,4353.1,4353.0,0.9066]
[1757422127838,0.127,4353.5,4353.3,0.4206]
[1757422127839,0.3105,4353.4,4353.3,0.4206]
[1757422128136,0.7267,4353.4,4353.3,0.4206]
[1757422128333,0.7267,4353.4,4353.3,0.212]
[1757422128535,0.7267,4353.4,4353.0,0.234]
[1757422129035,0.7267,4353.4,4353.1,0.234]
[1757422136241,0.7267,4353.4,4353.3,0.212]
[1757422136941,0.7267,4353.4,4353.3,0.4206]
[1757422137341,0.5156,4353.8,4353.7,0.4702]
[1757422137641,0.7267,4353.8,4353.7,0.6546]
[1757422138344,0.7267,4353.8,4353.7,0.446]
[1757422138535,0.7267,4353.8,4353.7,0.234]
[1757422139135,0.7267,4353.8,4353.7,0.6546]
[1757422139440,0.7267,4353.8,4353.7,0.9162]
[1757422139637,0.7267,4353.8,4353.7,0.6546]
[1757422141135,0.7267,4353.8,4353.7,0.4206]
[1757422141337,0.7267,4353.8,4353.2,3.2078]
[1757422141338,0.4162,4353.8,4353.2,3.2078]
[1757422141545,0.7267,4353.3,4353.2,3.4198]
[1757422141742,0.7267,4353.3,4353.2,3.6538]
[1757422143142,0.7267,4353.3,4353.2,3.83321]
[1757422143345,0.3105,4353.3,4353.2,4.53741]
[1757422143547,0.5156,4353.3,4353.2,4.53741]
[1757422144143,0.7267,4353.3,4353.2,3.8624]
[1757422144549,0.7267,4353.3,4353.2,3.6284]
[1757422144746,0.7267,4353.3,4353.2,3.8624]
[1757422145343,0.7267,4353.3,4353.2,4.27581]
[1757422145648,0.7267,4353.3,4353.2,3.6284]
[1757422145851,0.7267,4353.3,4353.2,3.8624]
[1757422146046,0.7267,4353.3,4353.2,4.27581]
[1757422146247,0.7267,4353.9,4353.8,0.4206]
[1757422146445,0.7267,4353.9,4353.8,0.6546]
[1757422147844,0.7267,4353.9,4353.8,1.06796]
[1757422148947,0.7267,4353.9,4353.8,0.6546]
[1757422150844,0.7267,4353.9,4353.8,0.234]
[1757422152549,0.4162,4353.9,4353.5,0.41338]
[1757422152757,0.3105,4353.8,4353.6,0.234]
[1757422153045,0.4162,4353.7,4353.6,0.62537]
[1757422153252,0.7267,4353.7,4353.6,0.85937]
[1757422153949,0.7267,4353.7,4353.6,1.32957]
[1757422154148,0.7267,4353.7,4353.6,1.09557]
[1757422154348,0.7267,4353.7,4353.6,0.6546]
[1757422154543,0.7267,4353.7,4353.6,1.06797]
[1757422156849,0.7267,4353.7,4353.6,1.32907]
[1757422157849,0.7267,4353.7,4353.6,1.06797]
[1757422159153,0.7267,4353.7,4353.6,0.83397]
[1757422159349,0.7267,4353.7,4353.6,1.06797]
[1757422160450,0.7267,4353.7,4353.6,1.32907]
[1757422162652,0.1956,4354.2,4354.1,1.07632]
[1757422162852,3.2078,4354.7,4354.4,0.4019]
[1757422162853,0.3128,4354.5,4354.4,0.4019]
[1757422163052,0.3128,4354.5,4354.4,0.663]
[1757422163349,0.3198,4354.5,4354.4,1.0763]
[1757422163547,0.8288,4355.0,4354.9,0.4019]
[1757422163750,0.8288,4355.0,4354.9,0.6359]
[1757422165154,0.8288,4355.0,4354.9,0.4306]
[1757422165355,0.8288,4355.0,4354.9,0.234]
[1757422165551,0.3198,4354.9,4354.5,3.2078]
[1757422165852,0.7116,4354.2,4353.8,3.2078]
[1757422166061,0.8387,4354.0,4353.9,0.234]
[1757422166453,0.8387,4354.0,4353.8,3.2078]
[1757422166645,0.3198,4353.9,4353.8,3.2078]
[1757422166851,0.7116,4353.9,4353.8,3.4418]
[1757422167057,0.7116,4353.9,4353.8,3.6384]
[1757422169155,0.7116,4353.9,4353.8,4.25706]
[1757422169353,0.5154,4353.9,4353.8,4.51816]
[1757422169554,0.5154,4353.9,4353.8,4.1048]
[1757422170259,0.5154,4353.9,4353.8,3.8437]
[1757422170458,0.5154,4353.9,4353.8,4.1048]
[1757422171961,0.5154,4353.9,4353.8,3.8708]
[1757422172159,0.7116,4353.9,4353.8,3.8437]
[1757422174363,0.5154,4353.9,4353.8,4.51816]
[1757422174561,0.5154,4353.9,4353.8,3.8708]
[1757422174765,0.7116,4353.9,4353.8,3.8437]
[1757422174966,0.5154,4353.9,4353.8,4.1048]
[1757422176767,0.7116,4353.9,4353.8,3.8437]
[1757422177456,0.7116,4353.9,4353.8,3.4418]
[1757422177457,4.7116,4353.9,4353.8,3.4418]
[1757422177854,4.7116,4353.9,4353.8,3.2078]
[1757422178066,4.7116,4353.9,4353.8,0.234]
[1757422178259,5.2669566,4353.9,4353.8,0.234]
[1757422179166,0.3227,4353.0,4352.9,3.8708]
[1757422179367,0.6425,4353.0,4352.9,3.8708]
[1757422179566,0.6425,4353.0,4352.9,4.1048]
[1757422179763,0.8387,4353.0,4352.9,3.2078]
[1757422179967,0.8387,4353.0,4352.4,3.8708]
[1757422179968,0.6425,4352.5,4352.4,3.8708]
[1757422180271,0.3198,4352.5,4352.4,4.1048]
[1757422181966,0.3198,4352.9,4352.4,3.8437]
[1757422182165,0.1956,4353.1,4353.0,0.4664]
[1757422182369,0.5154,4353.1,4353.0,0.897]
[1757422182570,0.7116,4353.1,4353.0,0.6359]
[1757422183374,0.7116,4353.1,4353.0,0.4019]
[1757422183671,0.7116,4353.1,4353.0,0.897]
[1757422184473,0.7116,4353.1,4353.0,0.6359]
[1757422185166,0.7116,4353.1,4353.0,0.897]
[1757422185167,0.5154,4353.1,4353.0,0.897]
[1757422185372,0.3198,4353.1,4353.0,0.897]
[1757422188573,0.532,4353.9,4353.8,0.4183]
[1757422188773,0.532,4353.9,4353.8,0.9129]
[1757422188968,0.3205,4353.9,4353.8,0.9129]
[1757422189171,0.3205,4354.4,4353.8,0.6523]
[1757422189365,0.532,4354.4,4354.3,0.2087]
[1757422189571,0.7474,4354.4,4354.3,0.4427]
[1757422190170,0.3205,4354.4,4354.3,0.9129]
[1757422190370,0.3205,4354.5,4354.4,0.6789]
[1757422191071,0.8699,4354.5,4354.4,0.4183]
[1757422192471,0.3205,4354.5,4354.4,0.6789]
[1757422192875,0.3205,4354.9,4354.5,0.2606]
[1757422193175,0.532,4354.9,4354.8,0.4183]
[1757422193377,0.532,4354.9,4354.8,0.6523]
[1757422194071,0.532,4354.9,4354.8,0.9129]
[1757422194876,0.3205,4354.9,4354.8,0.9129]
[1757422195074,0.7474,4354.9,4354.8,0.6523]
[1757422196178,0.2115,4354.2,4354.1,3.6261]
[1757422196376,0.532,4354.2,4354.1,3.8601]
[1757422196678,0.532,4354.2,4354.1,4.1207]
[1757422197373,0.7474,4354.2,4354.1,3.8601]
[1757422200580,0.7474,4353.6,4353.5,3.4165]
[1757422200782,0.4269,4353.6,4353.0,3.2078]
[1757422201082,0.4269,4353.2,4353.1,0.4427]
[1757422201277,0.7474,4353.2,4353.1,0.6523]
[1757422202384,0.1225,4353.0,4352.9,33.088]
[1757422202581,0.443,4353.0,4352.9,33.322]
[1757422205686,0.443,4353.0,4352.9,33.088]
[1757422206088,0.443,4353.0,4352.9,33.322]
[1757422208093,0.8699,4353.0,4352.9,0.4427]
[1757422209996,0.3205,4353.0,4352.9,0.9129]
[1757422210192,0.3205,4353.3,4353.0,0.2606]
[1757422210389,0.3205,4353.5,4353.4,0.6789]
[1757422210589,0.3205,4353.7,4353.5,0.2606]
[1757422210791,3.6347,4354.4,4354.3,0.2087]
[1757422211095,3.9552,4354.4,4354.3,0.9129]
[1757422211295,3.9552,4354.4,4354.3,0.6523]
[1757422211799,0.1225,4355.5,4354.3,0.6523]
[1757422211800,0.3205,4354.8,4354.3,0.9129]
[1757422211995,3.2078,4355.4,4354.8,0.4183]
[1757422212299,0.7474,4354.9,4354.8,0.4183]
[1757422212598,0.7474,4354.9,4354.8,0.6523]
[1757422214599,0.8699,4354.5,4354.4,0.2087]
[1757422214803,0.8699,4354.5,4354.4,0.4427]
[1757422215901,0.7474,4354.4,4354.3,0.2087]
[1757422216100,0.7474,4354.4,4354.3,0.4427]
[1757422216498,0.4269,4354.4,4354.3,0.234]
[1757422216703,0.3957,4353.7,4353.6,3.408]
[1757422217000,0.3957,4353.7,4353.6,3.641]
[1757422217199,0.6999,4353.7,4353.6,3.641]
[1757422217600,0.3042,4353.9,4353.6,0.6298]
[1757422217806,0.3042,4353.9,4353.8,0.6578]
[1757422218001,0.6999,4353.9,4353.8,0.3968]
[1757422218302,0.6999,4353.9,4353.8,0.233]
[1757422219305,0.3957,4353.9,4353.1,33.088]
[1757422219598,0.6999,4353.2,4353.1,33.088]
[1757422219798,0.6999,4353.2,4353.1,33.321]
[1757422222490,0.499,4353.2,4353.1,33.582]
[1757422222694,0.3042,4353.2,4353.1,33.582]
[1757422223596,0.3042,4353.2,4353.1,33.321]
[1757422224605,0.1247,4353.0,4352.5,3.2078]
[1757422224796,0.6999,4352.7,4352.6,0.4332]
[1757422226002,0.6999,4352.7,4352.6,0.2002]
[1757422226206,0.6999,4352.7,4352.6,0.4332]
[1757422226501,0.6999,4352.7,4352.6,0.6298]
[1757422226708,0.3042,4352.7,4352.6,0.8908]
[1757422227204,0.499,4352.7,4352.6,0.8908]
[1757422227506,3.2078,4352.9,4352.6,0.6298]
[1757422227704,0.499,4352.8,4352.7,0.3968]
[1757422228108,0.6999,4352.8,4352.7,0.3968]
[1757422230208,0.3042,4352.8,4352.7,0.6578]
[1757422230901,0.499,4352.8,4352.7,0.3968]
[1757422231302,0.6999,4352.8,4352.7,0.3968]
[1757422231510,0.6999,4352.8,4352.7,0.2002]
[1757422232111,0.6999,4352.8,4352.6,0.233]
[1757422232709,0.6999,4352.8,4352.7,0.2002]
[1757422233407,0.6999,4352.8,4352.7,0.6578]
[1757422233608,0.499,4352.8,4352.7,0.6578]
[1757422234704,0.6999,4352.8,4352.7,0.3968]
[1757422234912,0.6999,4352.8,4352.6,0.233]
[1757422235604,0.3957,4352.8,4352.0,3.4684]
[1757422235806,0.3957,4352.1,4352.0,3.408]
[1757422236110,0.6999,4352.1,4352.0,3.641]
[1757422236311,0.6999,4352.1,4352.0,3.8376]
[1757422237611,0.6999,4352.1,4352.0,4.0982]
[1757422238805,0.6999,4352.1,4352.0,0.6298]
[1757422239905,0.6999,4352.1,4352.0,0.8904]
[1757422240108,0.6999,4352.1,4352.0,0.6298]
[1757422242008,0.6999,4352.1,4352.0,0.233]
[1757422242812,0.6237,4351.5,4351.4,3.6046]
[1757422243013,0.8246,4351.5,4351.4,3.8376]
[1757422243215,0.8246,4351.5,4351.4,4.0982]
[1757422243419,0.8246,4351.5,4351.4,3.6046]
[1757422243715,0.8246,4351.5,4351.4,4.0982]
[1757422244510,0.6237,4351.5,4351.4,4.0982]
[1757422244906,0.3042,4351.5,4351.4,4.0982]
[1757422245309,3.2078,4352.4,4351.8,0.3968]
[1757422245506,3.2078,4352.4,4351.5,0.0732]
[1757422245507,0.499,4352.3,4352.2,0.6576]
[1757422245704,0.499,4352.3,4352.2,0.8906]
[1757422246816,0.6999,4352.3,4352.2,0.4038]
[1757422247113,0.6999,4352.3,4352.2,0.4332]
[1757422247314,0.499,4352.3,4352.2,0.8975]
[1757422247510,0.6315,4352.0,4351.9,0.4016]
[1757422247717,0.6315,4352.0,4351.9,0.42042803]
[1757422247911,0.8361,4352.0,4351.9,0.65342803]
[1757422248916,0.8361,4352.0,4351.9,0.91412803]
[1757422249306,0.8361,4352.0,4351.9,0.65342803]
[1757422249514,0.6315,4352.0,4351.9,0.91412803]
[1757422249711,0.4339,4352.5,4351.9,0.65342803]
[1757422249909,0.3092,4352.5,4352.4,0.6623]
[1757422250112,0.3092,4352.5,4352.4,0.8953]
[1757422250314,0.6315,4352.5,4352.4,0.8953]
[1757422250518,0.6315,4352.5,4352.4,0.4016]
[1757422250721,0.8361,4352.5,4352.4,0.65342803]
[1757422251211,0.8361,4352.5,4352.4,0.44982803]
[1757422251407,0.8361,4352.5,4352.4,0.01882803]
[1757422251612,1.39066649,4352.5,4352.4,0.25182803]
[1757422251912,1.39066649,4352.5,4352.4,0.01882803]
[1757422255422,1.39110428,4352.5,4352.4,0.01882803]
[1757422256219,5.39110428,4352.5,4352.4,0.01882803]
[1757422256421,5.39110428,4352.5,4351.8,0.233]
[1757422256623,0.7154,4351.9,4351.8,0.233]
[1757422257020,0.3092,4351.8,4351.6,0.233]
[1757422257220,0.7154,4351.7,4351.6,0.233]
[1757422257620,0.7154,4351.7,4351.6,0.431]
[1757422259326,0.7154,4351.7,4351.6,0.6346]
[1757422260429,0.3092,4351.9,4351.8,0.4016]
[1757422260630,0.3092,4351.9,4351.8,0.6811]
[1757422260923,0.7154,4351.9,4351.8,0.4016]
[1757422261123,0.7154,4351.9,4351.6,0.233]
[1757422261527,0.8361,4351.5,4351.4,3.4058]
[1757422261727,0.8361,4351.5,4351.4,3.6388]
[1757422262527,0.8361,4351.5,4351.4,3.8424]
[1757422262725,0.3092,4351.5,4351.4,0.9141]
[1757422262927,0.5108,4351.9,4351.8,0.4016]
[1757422263120,0.3092,4352.1,4351.9,0.2795]
[1757422263316,0.1207,4352.5,4352.0,0.9141]
[1757422263523,3.517,4352.7,4352.3,0.6811]
[1757422263823,0.3092,4352.9,4352.8,0.4016]
[1757422264025,0.3092,4352.9,4352.8,0.9141]
[1757422264227,0.5108,4353.4,4353.3,0.4016]
[1757422264420,1.26997421,4353.4,4352.7,3.2078]
[1757422264623,0.7154,4351.8,4351.7,1.04087968]
[1757422264828,0.96104314,4351.8,4350.6,0.3048]
[1757422265030,4.7951335,4352.0,4350.7,0.5028]
[1757422265031,3.2078,4351.3,4350.7,0.5028]
[1757422265231,3.2078,4351.3,4350.5,3.3266]
[1757422265232,0.55484314,4351.2,4350.6,0.5028]
[1757422265433,0.55484314,4351.2,4350.7,0.198]
[1757422265732,0.55484314,4351.2,4351.0,0.4236]
[1757422267229,0.55484314,4351.2,4351.1,0.3048]
[1757422268747,0.55484314,4351.2,4351.1,0.5028]
[1757422269340,3.2078,4351.3,4351.2,0.3048]
[1757422269540,3.76593033,4351.3,4351.2,0.3048]
[1757422272247,3.76593033,4351.3,4351.0,0.4236]
[1757422272450,0.55813033,4351.2,4350.6,0.3048]
[1757422272646,3.2078,4351.3,4350.6,0.3048]
[1757422272849,3.2078,4350.8,4350.6,0.3048]
[1757422273145,0.55787194,4350.7,4350.5,0.4236]
[1757422273351,3.2078,4350.8,4350.0,0.1946]
[1757422273549,0.55765227,4350.7,4350.1,0.3048]
[1757422273848,3.2078,4350.8,4350.1,0.5028]
[1757422274049,0.55765234,4350.7,4350.1,0.5028]
[1757422274249,3.2078,4350.8,4350.1,0.5028]
[1757422274449,0.55744697,4350.7,4350.2,0.198]
[1757422274650,3.2078,4350.8,4350.1,0.3048]
[1757422274846,0.55744697,4350.7,4350.2,0.3048]
[1757422275149,3.2078,4350.8,4350.7,0.3048]
[1757422275350,3.76507029,4350.8,4350.7,0.7064]
[1757422275647,3.2078,4350.8,4350.7,0.7064]
[1757422277152,3.2078,4350.8,4350.7,0.3048]
[1757422281646,3.2078,4350.8,4350.5,0.4348]
[1757422281847,0.235,4350.7,4350.5,0.4348]
[1757422282752,0.235,4350.7,4350.6,0.316]
[1757422285956,0.235,4350.7,4350.6,0.5243]
[1757422287351,0.235,4350.7,4350.0,0.2759]
[1757422287556,0.235,4350.7,4350.5,0.1228]
[1757422287753,0.235,4350.7,4350.5,0.3311]
[1757422287954,0.235,4350.7,4350.6,0.316]
[1757422288152,0.79235795,4350.7,4350.6,0.316]
[1757422288550,0.79235795,4350.7,4350.6,0.5243]
[1757422288751,0.79235795,4350.7,4350.6,0.316]
[1757422289055,0.79235795,4350.7,4350.6,0.5243]
[1757422289854,0.79235795,4350.7,4350.6,0.316]
[1757422294565,0.79235795,4350.7,4350.6,0.7333]
[1757422294763,0.55735795,4350.7,4350.6,0.7333]
[1757422296865,0.23375795,4350.7,4350.6,4.7333]
[1757422297566,3.2078,4350.8,4350.6,4.4173]
[1757422297763,3.2078,4351.3,4350.7,1.14695]
[1757422297964,3.2078,4351.3,4351.2,0.4173]
[1757422298169,3.2078,4351.3,4351.2,0.7333]
[1757422301473,3.4208,4351.3,4351.2,0.7333]
[1757422301869,3.6213,4351.3,4351.2,0.7333]
[1757422302070,3.9155,4351.3,4350.6,0.316]
[1757422302469,3.9155,4351.3,4351.2,0.2083]
[1757422302677,3.9155,4351.3,4351.2,0.5243]
[1757422303577,3.2078,4351.3,4351.2,0.7333]
[1757422304269,3.9155,4351.3,4351.2,0.5243]
[1757422305566,3.9155,4351.3,4350.5,0.1228]
[1757422305772,4.1505,4351.3,4350.6,0.316]
[1757422306082,3.9155,4350.7,4350.6,0.5243]
[1757422306272,3.9155,4350.7,4350.1,0.316]
[1757422307172,3.9155,4350.7,4350.6,0.3178]
[1757422307881,3.9155,4350.7,4349.8,0.235]
[1757422308175,3.9155,4350.7,4350.1,0.3178]
[1757422308975,0.7305,4350.2,4350.1,0.3178]
[1757422309179,0.7305,4350.2,4350.1,0.5131]
[1757422310681,0.4189,4350.2,4350.1,0.7093]
[1757422311274,3.4418,4350.7,4350.2,0.3178]
[1757422311480,0.2066,4350.3,4350.2,0.7093]
[1757422311682,0.97745306,4350.3,4350.2,0.7093]
[1757422312682,1.28905306,4350.3,4350.2,0.7093]
[1757422313179,1.28905306,4350.3,4350.0,0.1268]
[1757422313180,1.28905306,4350.3,4349.6,0.3178]
[1757422313381,3.4418,4350.7,4349.6,0.7093]
[1757422313382,0.4189,4349.7,4349.6,0.7093]
[1757422313879,0.2066,4349.7,4349.6,0.7093]
[1757422314076,3.2078,4349.8,4349.6,0.3915]
[1757422314280,3.6267,4350.3,4350.2,0.7093]
[1757422314478,4.49670005,4350.3,4350.2,0.7093]
[1757422314876,4.49670005,4350.3,4350.2,0.5131]
[1757422315482,4.49670005,4350.3,4350.2,0.5319401]
[1757422316478,4.49670005,4350.3,4350.2,0.0188401]
[1757422317585,4.73070005,4350.3,4350.2,0.0188401]
[1757422320691,4.73070005,4350.3,4350.2,0.3366401]
[1757422321991,4.73070005,4350.3,4350.2,0.0188401]
[1757422322990,4.73070005,4350.3,4350.2,0.03774059]
[1757422323593,4.73070005,4350.3,4349.6,0.3178]
[1757422323893,0.7305,4349.6,4349.5,0.6359]
[1757422324187,0.7305,4349.6,4349.5,0.8321]
[1757422324396,0.4189,4349.6,4349.5,0.8321]
[1757422324593,0.4189,4349.6,4349.5,0.84479716]
[1757422328794,0.7305,4349.6,4349.5,0.84479716]
[1757422329594,0.4189,4349.6,4349.5,0.84479716]
[1757422330887,3.2078,4349.8,4349.5,0.84479716]
[1757422331087,3.2078,4349.8,4349.6,0.3178]
[1757422331288,3.4144,4349.8,4349.7,0.7093]
[1757422331494,3.97136817,4349.8,4349.7,0.7093]
[1757422331804,3.97136817,4349.8,4349.7,0.72199716]
[1757422332394,4.18366817,4349.8,4349.7,0.72199716]
[1757422332893,4.49526817,4349.8,4349.7,0.72199716]
[1757422333792,4.18366817,4349.8,4349.7,0.72199716]
[1757422334993,3.2078,4349.8,4349.7,4.95189716]
[1757422335301,3.2078,4350.3,4350.2,0.7093]
[1757422335691,3.2078,4350.3,4350.2,0.72199716]
[1757422336391,3.4144,4350.3,4350.2,0.72199716]
[1757422336697,4.47588038,4350.3,4350.2,0.72199716]
[1757422338400,4.47588038,4350.3,4350.2,0.01269716]
[1757422338601,4.47588038,4350.3,4349.5,0.5557]
[1757422338801,0.7092,4349.6,4349.5,0.3217]
[1757422338997,1.26698038,4349.6,4349.5,0.3217]
[1757422339193,1.26698038,4349.6,4349.5,0.5202]
[1757422339497,0.96818038,4349.6,4349.5,0.8549]
[1757422341198,0.76328038,4349.6,4349.5,0.8549]
[1757422341400,0.55778038,4349.6,4349.5,0.8549]
[1757422341899,3.2078,4349.8,4349.5,0.5332]
[1757422342202,1.26701083,4349.7,4349.6,0.3217]
[1757422342401,1.26701083,4349.7,4349.6,0.5202]
[1757422342700,1.26701083,4349.7,4349.6,0.3217]
[1757422343902,0.2988,4349.6,4349.2,0.3217]
[1757422344201,3.2078,4349.8,4349.2,0.7301]
[1757422344202,0.4104,4349.3,4349.2,0.7301]
[1757422344602,0.9682082,4349.3,4349.2,0.7301]
[1757422346707,1.2670082,4349.3,4349.2,0.7301]
[1757422347299,4.4748082,4349.3,4348.6,0.3217]
[1757422347504,0.4104,4348.7,4348.6,0.5202]
[1757422348405,0.7092,4348.7,4348.6,0.5202]
[1757422348609,1.26663677,4348.7,4348.6,0.5202]
[1757422349406,1.26663677,4348.7,4348.6,0.3217]
[1757422350303,0.7092,4348.7,4348.6,0.3217]
[1757422350998,1.26591349,4348.7,4348.1,0.3217]
[1757422351209,0.4104,4348.2,4348.1,0.7301]
[1757422351413,0.7092,4348.2,4348.1,0.7301]
[1757422352105,0.4104,4348.2,4348.1,0.7301]
[1757422352299,0.7092,4348.2,4348.1,0.7301]
[1757422353210,0.7092,4348.2,4347.5,0.1248]
[1757422353407,3.917,4348.2,4347.6,0.3217]
[1757422354717,3.917,4348.2,4348.1,0.1985]
[1757422354918,3.6182,4348.2,4348.1,0.7301]
[1757422355418,3.2078,4348.2,4348.1,0.7301]
[1757422356821,3.4133,4348.2,4348.1,0.7301]
[1757422357320,3.6182,4348.2,4348.1,0.7301]
[1757422358422,3.4133,4348.2,4348.1,0.7301]
[1757422360219,3.6182,4348.2,4348.1,0.7301]
[1757422360412,3.917,4348.2,4348.1,0.3217]
[1757422360617,3.917,4348.2,4347.9,0.234]
[1757422360917,3.917,4348.2,4347.9,0.6424]
[1757422360918,0.4104,4348.0,4347.9,0.6424]
[1757422361116,3.2078,4348.2,4347.9,0.6424]
[1757422361319,3.4133,4348.2,4348.1,0.4084]
[1757422361512,3.4133,4348.2,4348.1,0.7301]
[1757422361722,3.6182,4348.2,4348.1,0.7301]
[1757422361915,3.917,4348.2,4348.1,0.7301]
[1757422362521,3.917,4348.2,4347.8,0.234]
[1757422362717,3.917,4348.2,4347.7,0.234]
[1757422363123,3.6182,4348.2,4347.7,0.5557]
[1757422363328,0.7092,4347.8,4347.7,0.5557]
[1757422363519,0.7092,4347.8,4347.7,0.5202]
[1757422363918,0.7092,4347.8,4347.7,0.9641]
[1757422365020,0.7092,4347.8,4347.7,0.5202]
[1757422365220,0.7092,4347.8,4347.7,0.3217]
[1757422365414,0.2055,4347.8,4347.7,0.7301]
[1757422365618,0.4104,4347.8,4347.7,0.7301]
[1757422368227,0.2055,4347.8,4347.7,0.7301]
[1757422368523,0.4104,4348.1,4348.0,0.5485]
[1757422369024,0.4104,4348.1,4348.0,0.8615]
[1757422369622,0.7076,4348.1,4348.0,0.8615]
[1757422369929,0.4104,4348.1,4348.0,0.8615]
[1757422371625,3.2078,4348.2,4348.1,0.313]
[1757422372025,3.4168,4348.2,4348.1,0.7369]
[1757422374331,3.97297827,4348.2,4348.1,0.7369]
[1757422374633,0.7076,4348.1,4348.0,0.2918]
[1757422375534,0.7076,4348.1,4348.0,0.4881]
[1757422375832,0.5062,4348.1,4348.0,0.4881]
[1757422377232,1.06316318,4348.1,4348.0,0.4881]
[1757422377634,1.26456318,4348.1,4348.0,0.4881]
[1757422379232,1.26456318,4348.1,4348.0,0.0955]
[1757422381130,1.06316318,4348.1,4348.0,0.4881]
[1757422381327,1.26456318,4348.1,4348.0,0.4881]
[1757422382335,1.06316318,4348.1,4348.0,0.6108]
[1757422382740,1.06316318,4348.1,4348.0,0.4881]
[1757422382940,1.26456318,4348.1,4348.0,0.4881]
[1757422383233,1.26456318,4348.1,4348.0,0.0955]
[1757422384437,1.26456318,4348.1,4348.0,0.2918]
[1757422384731,1.26456318,4348.1,4348.0,0.4881]
[1757422385637,1.26456318,4348.1,4348.0,0.2918]
[1757422385835,1.26456318,4348.1,4348.0,0.4881]
[1757422386028,0.2972,4348.1,4348.0,0.6108]
[1757422386534,0.5062,4348.1,4348.0,0.4881]
[1757422387033,0.2972,4348.1,4348.0,0.6108]
[1757422387239,0.5062,4348.1,4348.0,0.6108]
[1757422387541,0.5062,4348.1,4348.0,0.4881]
[1757422387737,0.2972,4348.1,4348.0,0.6108]
[1757422387933,0.2972,4348.4,4348.3,0.41388]
[1757422388138,0.2972,4348.4,4348.3,1.16318]
[1757422388436,0.4739,4349.0,4348.9,0.1963]
[1757422388631,1.03141032,4349.0,4348.9,0.6266]
[1757422388831,3.2078,4349.7,4349.0,0.41381]
[1757422389038,0.209,4349.4,4349.3,0.3926]
[1757422389238,0.4104,4349.4,4349.3,0.6266]
[1757422389537,0.7076,4349.4,4349.3,0.6266]
[1757422390238,0.2972,4349.4,4349.3,0.7493]
[1757422390538,0.5062,4349.4,4349.3,0.6266]
[1757422390733,0.7076,4349.4,4349.3,0.6266]
[1757422390940,0.2972,4349.4,4349.3,0.6266]
[1757422391128,0.5062,4349.4,4349.3,0.7493]
[1757422391327,0.2972,4349.9,4349.3,0.7493]
[1757422391537,0.7076,4349.9,4349.8,0.3926]
[1757422391729,0.2972,4349.9,4349.8,0.7493]
[1757422392238,0.5062,4349.9,4349.8,0.6266]
[1757422393037,0.7076,4349.9,4349.8,0.3926]
[1757422393241,0.8297,4349.5,4349.4,3.2078]
[1757422393537,0.8297,4349.5,4348.0,1.15745]
[1757422393538,0.1221,4349.0,4348.5,0.234]
[1757422393737,4.0375,4349.0,4348.5,0.234]
[1757422395740,0.2972,4348.9,4348.5,3.4418]
[1757422395938,0.5062,4348.6,4348.5,3.8344]
[1757422396246,0.2972,4348.6,4348.5,3.9571]
[1757422396437,0.2972,4348.6,4348.5,7.9571]
[1757422396836,0.1221,4349.5,4349.4,0.3932]
[1757422397037,0.1221,4349.5,4349.4,0.6272]
[1757422397237,0.325,4349.5,4349.4,0.6272]